[Event "1st Bangalore GM-Open-A 2024"]
[Site "Bangalore"]
[Date "2024.01.20"]
[Round "4.30"]
[White "Sangma, Rahul"]
[Black "Aradhya, Garg"]
[Result "0-1"]
[ECO "A17"]
[WhiteElo "2182"]
[BlackElo "2390"]
[Annotator "RC"]
[PlyCount "70"]
[EventDate "2024.01.20"]
[EventType "swiss"]
[EventCountry "IND"]
[SourceTitle "playchess.com"]
[Source "ChessBase"]
[SourceQuality "1"]
[TimeControl "5400+30"]

1. Nf3 {[%emt 0:01:56]} d5 {[%emt 0:00:06]} 2. e3 {[%emt 0:00:07]} Nf6 {[%emt 0:00:10]} 3. c4 {[%emt 0:00:06]} e6 {[%emt 0:00:05]} 4. Nc3 {[%emt 0:00:44]} b6 {[%emt 0:00:34]} 5. cxd5 {[%emt 0:10:30]} exd5 {[%emt 0:00:08]} 6. b3 {[%emt 0:00:34]} Bb7 {[%emt 0:02:40]} 7. Bb2 {[%emt 0:00:39]} Nbd7 {[%emt 0:00:12]} 8. Rc1 {[%emt 0:02:39]} a6 {[%emt 0:01:15]} 9. d4 {[%emt 0:00:51]} Bd6 {[%emt 0:01:01]} 10. g3 {[%emt 0:05:15]} Qe7 {[%emt 0:09:54]} 11. Bg2 {[%emt 0:00:32]} O-O-O {[%emt 0:01:47]} 12. Qc2 {[%emt 0:00:44]} Kb8 {[%emt 0:02:05]} 13. O-O {[%emt 0:01:04]} h5 {[%emt 0:04:19]} 14. Nh4 {[%emt 0:11:59]} g6 {[%emt 0:00:18]} 15. Rfe1 {[%emt 0:00:08]} Ne4 {[%emt 0:01:09]} 16. f3 {[%emt 0:02:12]} Nxg3 {[%emt 0:00:26]} 17. hxg3 {[%emt 0:04:13]} Bxg3 {[%emt 0:01:05]} 18. Nxg6 {[%emt 0:08:19]} fxg6 {[%emt 0:00:24]} 19. e4 {[%emt 0:00:10]} Qh4 {[%emt 0:05:53]} 20. Nxd5 {[%emt 0:02:24]} Bxd5 {[%emt 0:03:42]} 21. exd5 {[%emt 0:00:14]} Qh2+ {[%emt 0:00:21]} 22. Kf1 {[%emt 0:00:01]} h4 {[%emt 0:00:02]} 23. Re5 {[%emt 0:09:16]} Bxe5 {[%emt 0:02:40]} 24. dxe5 {[%emt 0:00:07]} Nc5 {[%emt 0:00:06]} 25. b4 {[%emt 0:03:08]} h3 {[%emt 0:00:17]} 26. bxc5 {[%emt 0:00:01]} hxg2+ {[%emt 0:01:09]} 27. Qxg2 {[%emt 0:00:02]} Qxg2+ {[%emt 0:00:13]} 28. Kxg2 {[%emt 0:00:01]} Rxd5 {[%emt 0:00:02]} 29. Kg3 {[%emt 0:02:51]} Rxc5 {[%emt 0:00:13]} 30. Re1 {[%emt 0:01:17]} Re8 {[%emt 0:00:36]} 31. Re2 {[%emt 0:00:25]} Rc4 {[%emt 0:04:54]} 32. f4 {[%emt 0:00:06]} Kc8 {[%emt 0:00:11]} 33. Kg4 {[%emt 0:00:05]} Rf8 {[%emt 0:00:34]} 34. Rf2 {[%emt 0:00:56]} Kd7 {[%emt 0:00:13]} 35. Kg5 {[%emt 0:03:03]} Ke6 {[%emt 0:00:25]} 0-1

[Event "1st Bangalore GM-Open-A 2024"]
[Site "Bangalore"]
[Date "2024.01.20"]
[Round "4.31"]
[White "Nithin Babu"]
[Black "Nitin, S.."]
[Result "1-0"]
[ECO "E33"]
[WhiteElo "2177"]
[BlackElo "2385"]
[Annotator "RC"]
[PlyCount "77"]
[EventDate "2024.01.20"]
[EventType "swiss"]
[EventCountry "IND"]
[SourceTitle "playchess.com"]
[Source "ChessBase"]
[SourceQuality "1"]
[TimeControl "5400+30"]

1. d4 {[%emt 0:05:33]} Nf6 {[%emt 0:00:35]} 2. c4 {[%emt 0:00:06]} Nc6 {[%emt 0:00:06]} 3. Nf3 {[%emt 0:01:35]} e6 {[%emt 0:00:21]} 4. Nc3 {[%emt 0:03:00]} Bb4 {[%emt 0:00:14]} 5. Qc2 {[%emt 0:03:09]} d6 {[%emt 0:04:18]} 6. Bd2 {[%emt 0:00:38]} e5 {[%emt 0:14:48]} 7. d5 {[%emt 0:03:25]} Bxc3 {[%emt 0:00:36]} 8. Bxc3 {[%emt 0:00:06]} Ne7 {[%emt 0:00:19]} 9. e4 {[%emt 0:00:52]} O-O {[%emt 0:09:37]} 10. Nd2 {[%emt 0:03:49]} Ne8 {[%emt 0:09:23]} 11. O-O-O {[%emt 0:08:54]} f5 {[%emt 0:01:34]} 12. Bd3 {[%emt 0:03:04]} f4 {[%emt 0:08:06]} 13. c5 {[%emt 0:05:38]} Bg4 {[%emt 0:07:12]} 14. f3 {[%emt 0:03:06]} Bd7 {[%emt 0:00:34]} 15. Nc4 {[%emt 0:05:11]} Ng6 {[%emt 0:02:06]} 16. Qf2 {[%emt 0:05:38]} Qe7 {[%emt 0:03:42]} 17. cxd6 {[%emt 0:04:09]} cxd6 {[%emt 0:00:35]} 18. Kb1 {[%emt 0:01:33]} Nc7 {[%emt 0:02:38]} 19. Bb4 {[%emt 0:05:32]} Rf6 {[%emt 0:00:45]} 20. Rc1 {[%emt 0:04:58]} Bb5 {[%emt 0:08:03]} 21. Rhd1 {[%emt 0:02:31]} Qd7 {[%emt 0:01:24]} 22. Bf1 {[%emt 0:01:40]} Na6 {[%emt 0:03:02]} 23. Ba3 {[%emt 0:03:05]} h6 {[%emt 0:01:36]} 24. Rd2 {[%emt 0:02:39]} Kh7 {[%emt 0:00:25]} 25. Rdc2 {[%emt 0:00:47]} h5 {[%emt 0:06:13]} 26. Rc3 {[%emt 0:06:34]} Kh6 {[%emt 0:00:39]} 27. Ka1 {[%emt 0:01:57]} Kh7 {[%emt 0:00:36]} 28. R3c2 {[%emt 0:00:59]} Kh6 {[%emt 0:00:15]} 29. Rc3 {[%emt 0:01:18]} Kh7 {[%emt 0:00:02]} 30. b3 {[%emt 0:00:22]} Kh6 {[%emt 0:00:52]} 31. Nxd6 {[%emt 0:01:45]} Bxf1 {[%emt 0:01:27]} 32. Nf5+ {[%emt 0:00:13]} Kh7 {[%emt 0:01:06]} 33. Qxf1 {[%emt 0:00:33]} Nh8 {[%emt 0:00:01]} 34. Qf2 {[%emt 0:02:28]} Re8 {[%emt 0:01:52]} 35. Qh4 {[%emt 0:01:29]} Rxf5 {[%emt 0:00:45]} 36. exf5 {[%emt 0:00:11]} Qxf5 {[%emt 0:00:04]} 37. g4 {[%emt 0:01:57]} fxg3 {[%emt 0:00:07]} 38. hxg3 {[%emt 0:00:05]} Ng6 {[%emt 0:00:09]} 39. Qe4 {[%emt 0:00:27]} 1-0

[Event "1st Bangalore GM-Open-A 2024"]
[Site "Bangalore"]
[Date "2024.01.20"]
[Round "4.32"]
[White "Subhayan Kundu"]
[Black "Vijayakumar, Rishi"]
[Result "1-0"]
[ECO "C54"]
[WhiteElo "2385"]
[BlackElo "2104"]
[Annotator "TA"]
[PlyCount "127"]
[EventDate "2024.01.20"]
[EventType "swiss"]
[EventCountry "IND"]
[SourceTitle "playchess.com"]
[Source "ChessBase"]
[SourceQuality "1"]
[TimeControl "5400+30"]

{[%evp 34,127,-208,-470,-285,-362,-376,-351,-189,-171,-106,-117,-112,-129,-132,-140,-128,-127,-131,-127,-138,-131,-131,-123,-134,-137,-129,-132,-50,-41,-34,-12,-6,-6,-10,-9,0,-22,0,0,0,0,0,7,75,73,129,138,154,145,197,179,191,195,247,186,191,193,188,179,310,343,318,278,326,226,219,225,552,463,577,575,513,311,641,641,623,630,653,603,1672,1195,2108,1741,2377,2337,29977,29978,29979,29979,29979,29980,29990,29991,29991,29991]} 1. e4 {[%emt 0:14:30]} e5 {[%emt 0:00:30]} 2. Nf3 {[%emt 0:01:44]} Nc6 {[%emt 0:00:08]} 3. Bc4 {[%emt 0:00:51]} Bc5 {[%emt 0:00:07]} 4. c3 {[%emt 0:00:40]} Nf6 {[%emt 0:00:06]} 5. d3 {[%emt 0:00:14]} a6 {[%emt 0:00:05]} 6. Nbd2 {[%emt 0:02:16]} d6 {[%emt 0:00:08]} 7. Bb3 {[%emt 0:01:23]} Ba7 {[%emt 0:00:05]} 8. h3 {[%emt 0:00:16]} Be6 {[%emt 0:00:35]} 9. Ng5 {[%emt 0:07:26]} Bxb3 {[%emt 0:00:07]} 10. Qxb3 {[%emt 0:00:03]} O-O {[%emt 0:00:25]} 11. Qxb7 {[%emt 0:01:58]} Nh5 {[%emt 0:09:19]} 12. Nc4 {[%emt 0:03:57]} Qd7 {[%emt 0:18:07]} 13. Qb3 {[%emt 0:00:33]} d5 {[%emt 0:19:04]} 14. Ne3 {[%emt 0:00:35]} Nf4 {[%emt 0:02:32]} 15. exd5 {[%emt 0:15:40]} Bxe3 {[%emt 0:02:52]} 16. Bxe3 {[%emt 0:09:13]} Rab8 {[%emt 0:01:19]} 17. Qa4 {[%emt 0:08:36]} Nxg2+ {[%emt 0:02:14]} (17... Nxd5 18. Qc2 $14) (17... Nxd3+ 18. Kf1 Qxd5 19. Qe4 Qxe4 20. Nxe4) 18. Kd2 $2 {[%emt 0:02:00]} (18. Kd1 Qxd5 19. Bd2) 18... Qxd5 {[%emt 0:07:44]} 19. b3 {[%emt 0:00:33]} Nxe3 {[%emt 0:02:21]} 20. Kxe3 {[%emt 0:00:04]} Qc5+ {[%emt 0:04:11]} (20... e4 $142 21. Nxe4 f5) 21. Kf3 $19 {[%emt 0:00:25]} Qxc3 {[%emt 0:07:48]} ({Black should play} 21... Rbd8 $19 22. Rad1 e4+ (22... Qxc3 23. Ne4 $17) 23. Nxe4 Qh5+ 24. Kg2 Ne5) 22. Qe4 $17 {[%emt 0:00:54]} g6 {[%emt 0:00:39]} 23. Rac1 {[%emt 0:02:07]} Nd4+ {[%emt 0:03:13]} 24. Kg2 {[%emt 0:00:45]} Qd2 {[%emt 0:00:22]} 25. Qxe5 {[%emt 0:04:41]} Rb5 {[%emt 0:03:43]} (25... Qxd3 $6 26. Rhd1 Rb5 27. Rxd3 $11) 26. Rc5 {[%emt 0:04:17] [#]} Nc6 $1 {[%emt 0:03:38]} 27. Qd5 {[%emt 0:03:30]} Nb4 {[%emt 0:00:51]} (27... Qxa2 $2 28. Qxc6 Rxc5 29. Qxc5 $18) 28. Qc4 {[%emt 0:01:28]} Rxc5 {[%emt 0:10:23]} (28... Nxa2 $6 29. Ne4 Rxc5 30. Qxc5 Qxd3 31. Re1 $14) (28... Qxd3 29. Rxb5 Qxc4 30. bxc4) 29. Qxc5 {[%emt 0:00:08]} Nxd3 {[%emt 0:00:16]} (29... Nxa2 $6 30. Nxh7 Kxh7 31. Qxf8 Qg5+ 32. Kf1 Qc1+ 33. Kg2 Qg5+ 34. Kf1 Qc1+ 35. Kg2 Qg5+ $11) 30. Ne4 {[%emt 0:01:21]} Qf4 {[%emt 0:01:05]} ({Don't play} 30... Qxa2 $6 31. Nf6+ Kg7 32. Nh5+ Kg8 (32... gxh5 33. Qg5+ Kh8 34. Qf6+ Kg8 35. Qg5+ Kh8 36. Qf6+ Kg8 37. Qg5+ Kh8 $11) 33. Nf6+ Kg7 34. Nh5+ Kg8 (34... gxh5 35. Qg5+ Kh8 36. Qf6+ Kg8 37. Qg5+ Kh8 38. Qf6+ Kg8 39. Qg5+ Kh8 $11) 35. Nf6+ $11) (30... Nxc5 $17 31. Nxd2 Rd8) 31. Qd4 $15 {[%emt 0:01:44]} Ne5 {[%emt 0:00:25]} 32. Re1 {[%emt 0:01:27]} Qf3+ {[%emt 0:00:35]} 33. Kg1 {[%emt 0:01:28]} Qf5 {[%emt 0:00:47]} 34. Re3 {[%emt 0:00:36]} c5 {[%emt 0:00:55]} 35. Qc3 {[%emt 0:01:27]} Nf3+ {[%emt 0:00:49]} 36. Kg2 $1 {[%emt 0:00:33]} Nd4 $1 {[%emt 0:00:29]} 37. Qxc5 {[%emt 0:00:35]} Qxc5 {[%emt 0:00:23]} 38. Nxc5 {[%emt 0:00:01]} Nf5 {[%emt 0:00:27]} (38... a5 $11) 39. Re4 $16 {[%emt 0:00:54]} Ra8 {[%emt 0:00:42] [#]} (39... Rc8 $142 40. Nxa6 Kf8) 40. Ra4 $1 $16 {[%emt 0:00:10]} Rc8 {[%emt 0:00:25]} 41. b4 {[%emt 0:00:13]} ({Don't do} 41. Nxa6 Rc2 $16) 41... Rd8 {[%emt 0:00:26]} (41... Nd4 $16) 42. Nxa6 {[%emt 0:00:55]} Nh4+ {[%emt 0:00:39]} 43. Kf1 {[%emt 0:00:38]} Rd1+ {[%emt 0:00:27]} 44. Ke2 {[%emt 0:00:21]} Rb1 {[%emt 0:00:10]} 45. Nc7 {[%emt 0:00:54]} Nf5 {[%emt 0:00:29]} 46. b5 {[%emt 0:00:13]} Nd6 {[%emt 0:00:28]} (46... Kf8 {was worth a try.} 47. Ra7 h6 (47... Nd4+ $2 48. Kd3 $18)) 47. Ra8+ $18 {[%emt 0:00:09]} Kg7 {[%emt 0:00:05]} 48. a4 {[%emt 0:00:05]} h5 {[%emt 0:01:20]} 49. Rd8 {[%emt 0:01:32]} Nc4 {[%emt 0:00:27]} 50. Rd4 {[%emt 0:01:49]} Rb4 $2 {[%emt 0:00:29]} (50... Na5 {is more resistant.} 51. Nd5 Ra1) 51. Ne8+ $18 {[%emt 0:02:44]} Kh6 {[%emt 0:00:34]} 52. Nd6 {[%emt 0:00:08]} Rb2+ {[%emt 0:00:10]} 53. Kf1 {[%emt 0:01:32]} Nxd6 $2 {[%emt 0:00:50]} (53... Na5 54. Nxf7+ Kg7) 54. Rxd6 $18 {[%emt 0:00:01]} Rb4 {[%emt 0:00:11]} 55. Ra6 {[%emt 0:00:08]} Kg5 {[%emt 0:00:13]} 56. b6 {[%emt 0:00:07]} Kf5 {[%emt 0:01:06]} 57. a5 {[%emt 0:00:18]} Ke5 {[%emt 0:00:30]} 58. Ra7 {[%emt 0:00:11]} Rb5 {[%emt 0:00:07]} 59. b7 {[%emt 0:00:09]} ({Not} 59. Rxf7 Rxa5 60. Ke2 Rb5 $16) 59... Kd6 {[%emt 0:00:06]} 60. a6 {[%emt 0:00:04]} Kc7 {[%emt 0:00:11]} 61. Ra8 {[%emt 0:00:05]} Rb1+ {[%emt 0:00:17]} 62. Kg2 {[%emt 0:00:14]} Rb2 {[%emt 0:00:52]} 63. Rc8+ {[%emt 0:00:11]} Kd7 {[%emt 0:00:03]} 64. b8=Q {[%emt 0:00:10]} 1-0

[Event "1st Bangalore GM-Open-A 2024"]
[Site "Bangalore"]
[Date "2024.01.20"]
[Round "4.33"]
[White "Ayush Sharma"]
[Black "Vaibhav Jayant Raut"]
[Result "1-0"]
[ECO "D41"]
[WhiteElo "2378"]
[BlackElo "2052"]
[Annotator "RC"]
[PlyCount "55"]
[EventDate "2024.01.20"]
[EventType "swiss"]
[EventCountry "IND"]
[SourceTitle "playchess.com"]
[Source "ChessBase"]
[SourceQuality "1"]
[TimeControl "5400+30"]

1. Nf3 {[%emt 0:04:08]} Nf6 {[%emt 0:04:39]} 2. c4 {[%emt 0:00:00]} e6 {[%emt 0:02:08]} 3. Nc3 {[%emt 0:00:00]} d5 {[%emt 0:00:42]} 4. d4 {[%emt 0:00:00]} c5 {[%emt 0:01:19]} 5. cxd5 {[%emt 0:01:15]} cxd4 {[%emt 0:00:07]} 6. Qa4+ {[%emt 0:06:43]} Bd7 {[%emt 0:02:21]} 7. Qxd4 {[%emt 0:00:11]} exd5 {[%emt 0:01:25]} 8. Bg5 {[%emt 0:10:07]} Be6 {[%emt 0:09:24]} 9. Bxf6 {[%emt 0:03:43]} Qxf6 {[%emt 0:16:38]} 10. Qxf6 {[%emt 0:00:28]} gxf6 {[%emt 0:00:02]} 11. O-O-O {[%emt 0:00:38]} Nc6 {[%emt 0:19:17]} 12. Nxd5 {[%emt 0:00:22]} Rc8 {[%emt 0:04:20]} 13. Kb1 {[%emt 0:03:16]} Bc5 {[%emt 0:16:01]} 14. e3 {[%emt 0:00:52]} O-O {[%emt 0:02:14]} 15. Nxf6+ {[%emt 0:01:04]} Kh8 {[%emt 0:01:44]} 16. Ng5 {[%emt 0:01:42]} Ne5 {[%emt 0:09:08]} 17. Be2 {[%emt 0:02:13]} Bf5+ {[%emt 0:00:45]} 18. e4 {[%emt 0:00:21]} Bg6 {[%emt 0:00:26]} 19. f4 {[%emt 0:01:09]} h6 {[%emt 0:01:11]} 20. Nh3 {[%emt 0:00:26]} Be7 {[%emt 0:00:43]} 21. fxe5 {[%emt 0:00:11]} Bxf6 {[%emt 0:00:05]} 22. exf6 {[%emt 0:00:04]} Bxe4+ {[%emt 0:00:07]} 23. Bd3 {[%emt 0:00:13]} Bxg2 {[%emt 0:00:36]} 24. Rhg1 {[%emt 0:00:02]} Bxh3 {[%emt 0:00:22]} 25. Rg7 {[%emt 0:00:03]} Rc5 {[%emt 0:04:51]} 26. Rh7+ {[%emt 0:00:06]} Kg8 {[%emt 0:00:03]} 27. Rxh6 {[%emt 0:00:05]} Bg2 {[%emt 0:01:05]} 28. Bh7+ {[%emt 0:00:05]} 1-0

[Event "1st Bangalore GM-Open-A 2024"]
[Site "Bangalore"]
[Date "2024.01.20"]
[Round "4.34"]
[White "Dzhumaev, Marat"]
[Black "Simhadri Sai Hrushikesh"]
[Result "1-0"]
[ECO "C45"]
[WhiteElo "2362"]
[BlackElo "2050"]
[Annotator "RC"]
[PlyCount "73"]
[EventDate "2024.01.20"]
[EventType "swiss"]
[EventCountry "IND"]
[SourceTitle "playchess.com"]
[Source "ChessBase"]
[SourceQuality "1"]
[TimeControl "5400+30"]

1. e4 {[%emt 0:00:04]} e5 {[%emt 0:10:47]} 2. Nf3 {[%emt 0:04:17]} Nc6 {[%emt 0:00:04]} 3. d4 {[%emt 0:00:12]} exd4 {[%emt 0:00:10]} 4. Nxd4 {[%emt 0:00:05]} Qf6 {[%emt 0:00:22]} 5. Nb5 {[%emt 0:17:00]} Bc5 {[%emt 0:07:45]} 6. Qe2 {[%emt 0:00:10]} Bb6 {[%emt 0:03:38]} 7. N1c3 {[%emt 0:00:14]} Nge7 {[%emt 0:04:26]} 8. Be3 {[%emt 0:01:56]} Ba5 {[%emt 0:10:10]} 9. O-O-O {[%emt 0:00:16]} O-O {[%emt 0:12:44]} 10. Nd5 {[%emt 0:01:41]} Nxd5 {[%emt 0:00:59]} 11. exd5 {[%emt 0:00:24]} Ne5 {[%emt 0:01:08]} 12. d6 {[%emt 0:10:44]} c6 {[%emt 0:17:56]} 13. Nc3 {[%emt 0:08:37]} Bxc3 {[%emt 0:02:35]} 14. bxc3 {[%emt 0:00:10]} Qe6 {[%emt 0:00:22]} 15. Bd4 {[%emt 0:09:23]} Ng6 {[%emt 0:01:36]} 16. c4 {[%emt 0:15:38]} Qxd6 {[%emt 0:02:52]} 17. Bb2 {[%emt 0:00:53]} Qf4+ {[%emt 0:00:40]} 18. Kb1 {[%emt 0:00:09]} d5 {[%emt 0:01:23]} 19. cxd5 {[%emt 0:00:26]} cxd5 {[%emt 0:00:01]} 20. Rxd5 {[%emt 0:04:49]} Be6 {[%emt 0:01:19]} 21. Rd4 {[%emt 0:00:13]} Qc7 {[%emt 0:00:19]} 22. Qd2 {[%emt 0:04:14]} Rfd8 {[%emt 0:03:24]} 23. Be2 {[%emt 0:00:31]} Rac8 {[%emt 0:02:56]} 24. Rc1 {[%emt 0:01:41]} f6 {[%emt 0:07:22]} 25. Rxd8+ {[%emt 0:03:12]} Rxd8 {[%emt 0:00:06]} 26. Qe3 {[%emt 0:00:09]} Re8 {[%emt 0:01:33]} 27. Qxa7 {[%emt 0:00:52]} Bd5 {[%emt 0:03:21]} 28. Bb5 {[%emt 0:01:10]} Rc8 {[%emt 0:00:15]} 29. g3 {[%emt 0:01:07]} Ne7 {[%emt 0:01:51]} 30. c4 {[%emt 0:02:43]} Be4+ {[%emt 0:00:26]} 31. Ka1 {[%emt 0:00:07]} Nf5 {[%emt 0:01:59]} 32. c5 {[%emt 0:01:35]} Qe7 {[%emt 0:00:48]} 33. g4 {[%emt 0:06:43]} Nh6 {[%emt 0:00:30]} 34. g5 {[%emt 0:00:31]} fxg5 {[%emt 0:00:36]} 35. c6 {[%emt 0:00:08]} Nf5 {[%emt 0:00:36]} 36. c7 {[%emt 0:01:28]} Rxc7 {[%emt 0:01:00]} 37. Qb8+ {[%emt 0:00:09]} 1-0

[Event "1st Bangalore GM-Open-A 2024"]
[Site "Bangalore"]
[Date "2024.01.20"]
[Round "4.35"]
[White "Nayak Rajesh"]
[Black "Dushyant Sharma"]
[Result "1-0"]
[ECO "C68"]
[WhiteElo "2170"]
[BlackElo "2357"]
[Annotator "RC"]
[PlyCount "129"]
[EventDate "2024.01.20"]
[EventType "swiss"]
[EventCountry "IND"]
[SourceTitle "playchess.com"]
[Source "ChessBase"]
[SourceQuality "1"]
[TimeControl "5400+30"]

1. e4 {[%emt 0:00:27]} e5 {[%emt 0:00:05]} 2. Nf3 {[%emt 0:01:49]} Nc6 {[%emt 0:00:46]} 3. Nc3 {[%emt 0:01:04]} Nf6 {[%emt 0:01:20]} 4. Bb5 {[%emt 0:01:28]} Bd6 {[%emt 0:03:46]} 5. O-O {[%emt 0:01:43]} a6 {[%emt 0:02:56]} 6. Bxc6 {[%emt 0:01:36]} dxc6 {[%emt 0:00:29]} 7. d3 {[%emt 0:00:18]} Bg4 {[%emt 0:07:36]} 8. h3 {[%emt 0:02:54]} Bh5 {[%emt 0:01:43]} 9. Qe2 {[%emt 0:00:55]} Qe7 {[%emt 0:02:01]} 10. Nd1 {[%emt 0:03:53]} O-O-O {[%emt 0:04:27]} 11. Ne3 {[%emt 0:05:11]} Qd7 {[%emt 0:02:09]} 12. Nf5 {[%emt 0:14:11]} Rhg8 {[%emt 0:11:35]} 13. Ng3 {[%emt 0:12:29]} Bg6 {[%emt 0:08:21]} 14. Nh4 {[%emt 0:00:38]} h6 {[%emt 0:01:10]} 15. Nhf5 {[%emt 0:02:05]} Bxf5 {[%emt 0:04:32]} 16. Nxf5 {[%emt 0:00:30]} Bf8 {[%emt 0:06:08]} 17. f4 {[%emt 0:04:40]} g6 {[%emt 0:03:31]} 18. Ng3 {[%emt 0:00:55]} Bd6 {[%emt 0:07:18]} 19. Kh1 {[%emt 0:03:54]} Kb8 {[%emt 0:13:53]} 20. fxe5 {[%emt 0:03:43]} Bxe5 {[%emt 0:00:06]} 21. Bf4 {[%emt 0:00:06]} Qd6 {[%emt 0:00:26]} 22. Qf2 {[%emt 0:03:46]} Nd7 {[%emt 0:05:09]} 23. Ne2 {[%emt 0:01:19]} f5 {[%emt 0:00:43]} 24. Bxe5 {[%emt 0:02:47]} Qxe5 {[%emt 0:00:45]} 25. exf5 {[%emt 0:01:14]} gxf5 {[%emt 0:01:17]} 26. b3 {[%emt 0:00:19]} f4 {[%emt 0:04:55]} 27. Nxf4 {[%emt 0:00:09]} Rdf8 {[%emt 0:00:34]} 28. g3 {[%emt 0:04:35]} h5 {[%emt 0:02:38]} 29. Rae1 {[%emt 0:02:24]} Qg5 {[%emt 0:00:25]} 30. Kh2 {[%emt 0:09:20]} Qg7 {[%emt 0:01:28]} 31. Qe3 {[%emt 0:01:27]} h4 {[%emt 0:00:46]} 32. g4 {[%emt 0:00:05]} Qc3 {[%emt 0:01:01]} 33. Rf2 {[%emt 0:01:00]} Nf6 {[%emt 0:01:07]} 34. Qe5 {[%emt 0:01:08]} Qb4 {[%emt 0:00:44]} 35. c3 {[%emt 0:01:11]} Qb6 {[%emt 0:00:01]} 36. d4 {[%emt 0:00:14]} Re8 {[%emt 0:01:32]} 37. Ne6 {[%emt 0:00:08]} Nd5 {[%emt 0:00:23]} 38. Rf3 {[%emt 0:00:23]} Re7 {[%emt 0:00:46]} 39. c4 {[%emt 0:01:46]} Nb4 {[%emt 0:00:09]} 40. Qc5 {[%emt 0:06:16]} Rge8 {[%emt 0:00:47]} 41. Qxb6 {[%emt 0:01:32]} cxb6 {[%emt 0:00:01]} 42. Rf6 {[%emt 0:00:27]} Kc8 {[%emt 0:00:50]} 43. Re5 {[%emt 0:00:15]} Nd3 {[%emt 0:00:24]} 44. Re3 {[%emt 0:00:20]} Nb4 {[%emt 0:00:05]} 45. a3 {[%emt 0:00:52]} Nc2 {[%emt 0:00:27]} 46. Re4 {[%emt 0:00:05]} Nxd4 {[%emt 0:00:40]} 47. Rxd4 {[%emt 0:01:07]} Rxe6 {[%emt 0:00:01]} 48. Rxe6 {[%emt 0:00:04]} Rxe6 {[%emt 0:00:05]} 49. g5 {[%emt 0:00:25]} Re2+ {[%emt 0:00:45]} 50. Kg1 {[%emt 0:00:07]} Re3 {[%emt 0:01:24]} 51. Rg4 {[%emt 0:00:13]} Kd7 {[%emt 0:00:04]} 52. g6 {[%emt 0:00:20]} Re8 {[%emt 0:00:01]} 53. Rxh4 {[%emt 0:00:11]} Rg8 {[%emt 0:00:17]} 54. Rg4 {[%emt 0:00:02]} Ke6 {[%emt 0:00:05]} 55. g7 {[%emt 0:00:24]} Kf7 {[%emt 0:00:19]} 56. Kf2 {[%emt 0:00:07]} Kf6 {[%emt 0:02:39]} 57. Kf3 {[%emt 0:00:07]} Kf7 {[%emt 0:00:23]} 58. Kf4 {[%emt 0:00:05]} Kf6 {[%emt 0:00:03]} 59. Rg3 {[%emt 0:00:15]} Ke6 {[%emt 0:00:22]} 60. h4 {[%emt 0:00:19]} Kf6 {[%emt 0:00:16]} 61. h5 {[%emt 0:00:20]} Rxg7 {[%emt 0:00:09]} 62. Rxg7 {[%emt 0:00:04]} Kxg7 {[%emt 0:00:05]} 63. Ke5 {[%emt 0:00:10]} c5 {[%emt 0:00:13]} 64. Kd6 {[%emt 0:00:04]} a5 {[%emt 0:00:39]} 65. a4 {[%emt 0:00:10]} 1-0

[Event "1st Bangalore GM-Open-A 2024"]
[Site "Bangalore"]
[Date "2024.01.20"]
[Round "4.36"]
[White "Moksh Amit Doshi"]
[Black "Daaevik Wadhawan"]
[Result "1/2-1/2"]
[ECO "D87"]
[WhiteElo "2355"]
[BlackElo "1997"]
[Annotator "RC"]
[PlyCount "62"]
[EventDate "2024.01.20"]
[EventType "swiss"]
[EventCountry "IND"]
[SourceTitle "playchess.com"]
[Source "ChessBase"]
[SourceQuality "1"]
[TimeControl "5400+30"]

1. d4 {[%emt 0:04:09]} Nf6 {[%emt 0:00:45]} 2. c4 {[%emt 0:00:08]} g6 {[%emt 0:00:04]} 3. Nc3 {[%emt 0:00:07]} d5 {[%emt 0:00:06]} 4. cxd5 {[%emt 0:00:06]} Nxd5 {[%emt 0:00:09]} 5. e4 {[%emt 0:00:03]} Nxc3 {[%emt 0:00:12]} 6. bxc3 {[%emt 0:00:04]} Bg7 {[%emt 0:00:07]} 7. Bc4 {[%emt 0:00:06]} c5 {[%emt 0:00:13]} 8. Ne2 {[%emt 0:00:07]} Nc6 {[%emt 0:00:04]} 9. Be3 {[%emt 0:00:08]} O-O {[%emt 0:00:12]} 10. O-O {[%emt 0:00:06]} b6 {[%emt 0:00:05]} 11. Rc1 {[%emt 0:00:35]} Bb7 {[%emt 0:12:49]} 12. Bb5 {[%emt 0:00:15]} Na5 {[%emt 0:11:01]} 13. d5 {[%emt 0:05:20]} a6 {[%emt 0:14:13]} 14. Bd3 {[%emt 0:01:34]} e6 {[%emt 0:01:21]} 15. c4 {[%emt 0:00:59]} exd5 {[%emt 0:01:30]} 16. cxd5 {[%emt 0:05:49]} Rc8 {[%emt 0:07:18]} 17. Qd2 {[%emt 0:01:52]} Re8 {[%emt 0:01:48]} 18. Rfd1 {[%emt 0:01:32]} Qd6 {[%emt 0:08:10]} 19. Bb1 {[%emt 0:04:55]} Rcd8 {[%emt 0:01:56]} 20. Bxc5 {[%emt 0:05:20]} bxc5 {[%emt 0:00:40]} 21. Qxa5 {[%emt 0:00:07]} f5 {[%emt 0:06:29]} 22. f3 {[%emt 0:12:39]} Bh6 {[%emt 0:01:21]} 23. Rc3 {[%emt 0:00:52]} Bc8 {[%emt 0:08:13]} 24. Kh1 {[%emt 0:05:01]} fxe4 {[%emt 0:03:09]} 25. Bxe4 {[%emt 0:00:21]} Rxe4 {[%emt 0:06:35]} 26. fxe4 {[%emt 0:02:57]} Bg4 {[%emt 0:00:30]} 27. Rc2 {[%emt 0:06:09]} Rf8 {[%emt 0:01:07]} 28. Re1 {[%emt 0:04:15]} Rf2 {[%emt 0:04:24]} 29. Nd4 {[%emt 0:03:00]} Be3 {[%emt 0:00:18]} 30. Qxc5 {[%emt 0:13:50]} Qxc5 {[%emt 0:04:17]} 31. Rxc5 {[%emt 0:00:07]} Bxd4 {[%emt 0:00:01]} 1/2-1/2